fUSD/lending_fUSD_20250211
["ID","MTS","AMOUNT","RATE_DAILY","PERIOD"]
[352750734,1739291438515,-500.0,0.00016438,2]
[352750736,1739291438525,-500.89,0.00016438,2]
[352750737,1739291438535,-505.0800314,0.00016438,2]
[352750739,1739291438544,-500.0,0.00016438,2]
[352750741,1739291438553,-500.0,0.00016438,2]
[352750743,1739291438563,-500.0,0.00016438,2]
[352750745,1739291438572,-500.0,0.00016438,2]
[352750747,1739291438582,-1449.75,0.00016438,2]
[352750749,1739291438591,-486.81666558,0.00016438,2]
[352750751,1739291438600,-500.0,0.00016438,2]
[352750753,1739291438610,-500.0,0.00016438,2]
[352750755,1739291438619,-500.0,0.00016438,2]
[352750757,1739291438629,-623.41,0.00016438,2]
[352750759,1739291438639,-151.0,0.00016438,2]
[352750762,1739291438648,-1486.7,0.00016438,2]
[352750764,1739291438658,-500.0,0.00016438,2]
[352750766,1739291438667,-500.0,0.00016438,2]
[352750768,1739291438677,-500.0,0.00016438,2]
[352750770,1739291438688,-500.0,0.00016438,2]
[352750772,1739291438697,-500.0,0.00016438,2]
[352750774,1739291438707,-500.0,0.00016438,2]
[352750784,1739291438912,-1000.0,0.00016438,2]
[352750785,1739291438922,-500.0,0.00016438,2]
[352750786,1739291438931,-500.0,0.00016438,2]
[352750787,1739291438940,-500.0,0.00016438,2]
[352750789,1739291438949,-1175.45,0.00016438,2]
[352750791,1739291438958,-500.0,0.00016438,2]
[352750792,1739291438967,-1219.72,0.00016438,2]
[352750794,1739291438976,-765.97,0.00016438,2]
[352750796,1739291438987,-2288.22,0.00016438,2]
[352750798,1739291438996,-500.0,0.00016438,2]
[352750800,1739291439005,-1740.03247,0.00016438,2]
[352750802,1739291439015,-1740.03247,0.00016438,2]
[352750804,1739291439024,-853.01,0.00016438,2]
[352750806,1739291439033,-698.93,0.00016438,2]
[352750808,1739291439042,-500.0,0.00016438,2]
[352750810,1739291439051,-500.0,0.00016438,2]
[352750812,1739291439061,-500.0,0.00016438,2]
[352750814,1739291439070,-500.0,0.00016438,2]
[352750816,1739291439079,-500.0,0.00016438,2]
[352750818,1739291439089,-551.58,0.00016438,2]
[352750820,1739291439098,-500.0,0.00016438,2]
[352750822,1739291439108,-500.0,0.00016438,2]
[352750824,1739291439117,-1119.22,0.00016438,2]
[352750826,1739291439126,-500.0,0.00016438,2]
[352750828,1739291439136,-1671.59,0.00016438,2]
[352750830,1739291439145,-500.0,0.00016438,2]
[352750832,1739291439156,-838.44,0.00016438,2]
[352750834,1739291439165,-500.0,0.00016438,2]
[352750836,1739291439175,-500.0,0.00016438,2]
[352750838,1739291439184,-410.13472134,0.00016438,2]
[352750840,1739291439194,-914.04,0.00016438,2]
[352750843,1739291439204,-500.0,0.00016438,2]
[352750845,1739291439215,-500.0,0.00016438,2]
[352750846,1739291439224,-673.83,0.00016438,2]
[352750848,1739291439237,-500.0,0.00016438,2]
[352750849,1739291439246,-500.0,0.00016438,2]
[352750850,1739291439255,-1349.14,0.00016438,2]
[352750851,1739291439265,-925.93,0.00016438,2]
[352750852,1739291439274,-500.0,0.00016438,2]
[352750853,1739291439284,-743.2,0.00016438,2]
[352750854,1739291439293,-500.0,0.00016438,2]
[352750855,1739291439303,-679.84,0.00016438,2]
[352750856,1739291439312,-500.0,0.00016438,2]
[352750857,1739291439322,-500.0,0.00016438,2]
[352750858,1739291439332,-500.0,0.00016438,2]
[352750859,1739291439343,-507.24,0.00016438,2]
[352750860,1739291439352,-500.0,0.00016438,2]
[352750861,1739291439361,-500.0,0.00016438,2]
[352750862,1739291439371,-500.0,0.00016438,2]
[352750863,1739291439380,-548.51,0.00016438,2]
[352750864,1739291439389,-500.0,0.00016438,2]
[352750865,1739291439398,-903.91,0.00016438,2]
[352750866,1739291439406,-799.72,0.00016438,2]
[352750867,1739291439416,-1141.13,0.00016438,2]
[352750868,1739291439426,-500.0,0.00016438,2]
[352750869,1739291439439,-500.0,0.00016438,2]
[352750870,1739291439448,-558.44,0.00016438,2]
[352750871,1739291439458,-500.0,0.00016438,2]
[352750872,1739291439467,-500.0,0.00016438,2]
[352750873,1739291439478,-500.0,0.00016438,2]
[352750874,1739291439487,-500.0,0.00016438,2]
[352750875,1739291439497,-500.0,0.00016438,2]
[352750876,1739291439506,-186.820922,0.00016438,2]
[352750877,1739291439518,-500.0,0.00016438,2]
[352750878,1739291439528,-662.25,0.00016438,2]
[352750879,1739291439537,-843.137383,0.00016438,2]
[352750880,1739291439547,-186.820922,0.00016438,2]
[352750881,1739291439556,-843.137383,0.00016438,2]
[352750882,1739291439565,-500.0,0.00016438,2]
[352750883,1739291439574,-500.0,0.00016438,2]
[352750884,1739291439583,-538.85,0.00016438,2]
[352750885,1739291439593,-1021.59,0.00016438,2]
[352750886,1739291439604,-1004.74,0.00016438,2]
[352750887,1739291439614,-500.0,0.00016438,2]
[352750888,1739291439623,-1618.61,0.00016438,2]
[352750889,1739291439633,-2373.627533,0.00016438,2]
[352750890,1739291439643,-500.0,0.00016438,2]
[352750891,1739291439654,-732.49,0.00016438,2]
[352750892,1739291439663,-500.0,0.00016438,2]
[352750893,1739291439673,-2373.627533,0.00016438,2]
[352750894,1739291439682,-500.0,0.00016438,2]
[352750895,1739291439692,-500.0,0.00016438,2]
[352750896,1739291439701,-905.87,0.00016438,2]
[352750897,1739291439711,-500.0,0.00016438,2]
[352750898,1739291439721,-1119.9,0.00016438,2]
[352750899,1739291439733,-500.0,0.00016438,2]
[352750900,1739291439743,-500.0,0.00016438,2]
[352750901,1739291439752,-338.700866,0.00016438,2]
[352750902,1739291439761,-500.0,0.00016438,2]
[352750903,1739291439773,-956.74,0.00016438,2]
[352750904,1739291439783,-338.700866,0.00016438,2]
[352750905,1739291439792,-500.0,0.00016438,2]
[352750906,1739291439801,-500.0,0.00016438,2]
[352750907,1739291439810,-963.24,0.00016438,2]
[352750908,1739291439820,-500.0,0.00016438,2]
[352750909,1739291439830,-500.0,0.00016438,2]
[352750910,1739291439840,-292.100826,0.00016438,2]
[352750911,1739291439850,-845.7,0.00016438,2]
[352750912,1739291439863,-1697.15,0.00016438,2]
[352750913,1739291439873,-859.42,0.00016438,2]
[352750914,1739291439883,-1878.61,0.00016438,2]
[352750915,1739291439893,-292.100826,0.00016438,2]
[352750916,1739291439904,-151.0,0.00016438,2]
[352750917,1739291439914,-282.25835728,0.00016438,2]
[352750918,1739291439924,-537.59,0.00016438,2]
[352750919,1739291439934,-1103.7,0.00016438,2]
[352750921,1739291439944,-3767.12,0.00016438,2]
[352750922,1739291439954,-1251.26,0.00016438,2]
[352750923,1739291439963,-500.0,0.00016438,2]
[352750924,1739291439973,-634.37,0.00016438,2]
[352750925,1739291439986,-465.063866,0.00016438,2]
[352750926,1739291439997,-500.0,0.00016438,2]
[352750927,1739291440006,-215.48727838,0.00016438,2]
[352750928,1739291440017,-500.0,0.00016438,2]
[352750929,1739291440028,-1014.44,0.00016438,2]
[352750930,1739291440037,-465.063866,0.00016438,2]
[352750931,1739291440047,-804.34,0.00016438,2]
[352750932,1739291440057,-1352.43,0.00016438,2]
[352750933,1739291440068,-500.0,0.00016438,2]
[352750934,1739291440077,-1490.84,0.00016438,2]
[352750935,1739291440086,-500.0,0.00016438,2]
[352750936,1739291440096,-1170.57,0.00016438,2]
[352750937,1739291440105,-500.0,0.00016438,2]
[352750938,1739291440115,-500.0,0.00016438,2]
[352750939,1739291440124,-1975.23,0.00016438,2]
[352750940,1739291440133,-1419.52,0.00016438,2]
[352750941,1739291440143,-514.91980382,0.00016438,2]
[352750942,1739291440154,-1093.82,0.00016438,2]
[352750943,1739291440163,-635.83,0.00016438,2]
[352750944,1739291440172,-457.907625,0.00016438,2]
[352750945,1739291440182,-500.0,0.00016438,2]
[352750946,1739291440192,-151.0,0.00016438,2]
[352750947,1739291440203,-1117.04,0.00016438,2]
[352750948,1739291440211,-457.907625,0.00016438,2]
[352750949,1739291440221,-1372.6,0.00016438,2]
[352750950,1739291440233,-526.67,0.00016438,2]
[352750951,1739291440243,-1347.1,0.00016438,2]
[352750952,1739291440252,-500.0,0.00016438,2]
[352750953,1739291440262,-1024.07,0.00016438,2]
[352750954,1739291440271,-1133.16,0.00016438,2]
[352750955,1739291440282,-1631.48,0.00016438,2]
[352750956,1739291440292,-1699.79,0.00016438,2]
[352750957,1739291440301,-529.56,0.00016438,2]
[352750958,1739291440311,-2814.21,0.00016438,2]
[352750959,1739291440321,-966.77,0.00016438,2]
[352750960,1739291440331,-500.0,0.00016438,2]
[352750961,1739291440341,-500.0,0.00016438,2]
[352750962,1739291440351,-993.91,0.00016438,2]
[352750963,1739291440361,-500.0,0.00016438,2]
[352750964,1739291440371,-151.0,0.00016438,2]
[352750965,1739291440381,-500.0,0.00016438,2]
[352750966,1739291440391,-761.1,0.00016438,2]
[352750967,1739291440400,-1100.0,0.00016438,2]
[352750968,1739291440410,-780.2,0.00016438,2]
[352750969,1739291440419,-3533.22,0.00016438,2]
[352750970,1739291440430,-1187.43,0.00016438,2]
[352750971,1739291440442,-507.88589563,0.00016438,7]
[352750972,1739291440452,-500.0,0.00016438,2]
[352750973,1739291440461,-826.73,0.00016438,2]
[352750974,1739291440473,-500.0,0.00016438,2]
[352750975,1739291440487,-507.87,0.00016438,2]
[352750976,1739291440497,-1939.117785,0.00016438,2]
[352750977,1739291440506,-2199.62,0.00016438,2]
[352750978,1739291440516,-1647.68,0.00016438,2]
[352750979,1739291440525,-1443.28,0.00016438,2]
[352750980,1739291440535,-2538.38,0.00016438,2]
[352750981,1739291440545,-1393.46,0.00016438,2]
[352750982,1739291440555,-1939.117785,0.00016438,2]
[352750983,1739291440564,-655.31,0.00016438,2]
[352750984,1739291440573,-151.0,0.00016438,2]
[352750985,1739291440583,-151.0,0.00016438,2]
[352750986,1739291440593,-500.0,0.00016438,2]
[352750987,1739291440603,-2805.05,0.00016438,2]
[352750988,1739291440613,-151.0,0.00016438,2]
[352750989,1739291440623,-500.0,0.00016438,2]
[352750990,1739291440633,-2847.99,0.00016438,2]
[352750991,1739291440643,-1174.65,0.00016438,2]
[352750992,1739291440653,-500.0,0.00016438,2]
[352750993,1739291440662,-500.0,0.00016438,2]
[352750994,1739291440672,-500.0,0.00016438,2]
[352750995,1739291440681,-500.0,0.00016438,2]
[352750996,1739291440691,-500.0,0.00016438,2]
[352750997,1739291440701,-500.0,0.00016438,2]
[352750998,1739291440710,-500.0,0.00016438,2]
[352750999,1739291440720,-500.51325432,0.00016438,2]
[352751000,1739291440731,-500.0,0.00016438,2]
[352751001,1739291440741,-500.0,0.00016438,2]
[352751002,1739291440750,-506.69839794,0.00016438,2]
[352751003,1739291440759,-1144.45,0.00016438,2]
[352751004,1739291440768,-919.69,0.00016438,2]
[352751005,1739291440778,-1147.38,0.00016438,2]
[352751006,1739291440787,-500.0,0.00016438,2]
[352751007,1739291440796,-947.99,0.00016438,2]
[352751008,1739291440806,-500.0,0.00016438,2]
[352751009,1739291440815,-500.0,0.00016438,2]
[352751010,1739291440824,-500.0,0.00016438,2]
[352751011,1739291440833,-500.0,0.00016438,2]
[352751012,1739291440842,-719.38,0.00016438,2]
[352751013,1739291440851,-504.53741521,0.00016438,2]
[352751014,1739291440860,-500.0,0.00016438,2]
[352751015,1739291440869,-1442.31,0.00016438,2]
[352751016,1739291440878,-727.63,0.00016438,2]
[352751017,1739291440887,-500.0,0.00016438,2]
[352751018,1739291440897,-520.8774309,0.00016438,2]
[352751019,1739291440906,-500.0,0.00016438,2]
[352751020,1739291440916,-1381.38,0.00016438,2]
[352751021,1739291440925,-793.39,0.00016438,2]
[352751022,1739291440935,-1238.39,0.00016438,2]
[352751023,1739291440944,-1299.99,0.00016438,2]
[352751024,1739291440954,-1377.51,0.00016438,2]
[352751025,1739291440963,-500.0,0.00016438,2]
[352751026,1739291440972,-665.38,0.00016438,2]
[352751027,1739291440984,-500.0,0.00016438,2]
[352751028,1739291440993,-1005.53,0.00016438,2]
[352751029,1739291441003,-500.0,0.00016438,2]
[352751030,1739291441013,-500.0,0.00016438,2]
[352751031,1739291441022,-500.0,0.00016438,2]
[352751032,1739291441031,-500.0,0.00016438,2]
[352751033,1739291441040,-500.0,0.00016438,2]
[352751034,1739291441050,-1425.88,0.00016438,2]
[352751035,1739291441059,-1629.01,0.00016438,2]
[352751036,1739291441069,-1646.42,0.00016438,2]
[352751037,1739291441078,-500.0,0.00016438,2]
[352751038,1739291441087,-606.84,0.00016438,2]
[352751039,1739291441096,-500.0,0.00016438,2]
[352751040,1739291441106,-500.0,0.00016438,2]
[352751041,1739291441115,-1203.55,0.00016438,2]
[352751042,1739291441124,-794.24,0.00016438,2]
[352751043,1739291441134,-765.735734,0.00016438,2]
[352751044,1739291441143,-765.735734,0.00016438,2]
[352751045,1739291441152,-1278.91,0.00016438,2]
[352751046,1739291441162,-500.0,0.00016438,2]
[352751047,1739291441171,-899.94,0.00016438,2]
[352751048,1739291441180,-501.94083038,0.00016438,2]
[352751049,1739291441189,-765.735734,0.00016438,2]
[352751050,1739291441198,-1028.71,0.00016438,2]
[352751051,1739291441207,-151.0,0.00016438,2]
[352751052,1739291441217,-765.735734,0.00016438,2]
[352751053,1739291441226,-151.0,0.00016438,2]
[352751054,1739291441239,-151.0,0.00016438,2]
[352751055,1739291441249,-500.0,0.00016438,2]
[352751056,1739291441314,-500.0,0.00016438,2]
[352751057,1739291441324,-502.46614023,0.00016438,2]
[352751058,1739291441333,-249.11139155,0.00016438,2]
[352751059,1739291441343,-500.0,0.00016438,2]
[352751060,1739291441352,-501.93362595,0.00016438,2]
[352751061,1739291441362,-2066.08,0.00016438,2]
[352751062,1739291441371,-500.33690449,0.00016438,2]
[352751063,1739291441380,-697.44,0.00016438,2]
[352751064,1739291441389,-500.0,0.00016438,2]
[352751065,1739291441399,-1059.16,0.00016438,2]
[352751066,1739291441410,-1035.99,0.00016438,2]
[352751067,1739291441419,-533.75,0.00016438,2]
[352751068,1739291441430,-500.0,0.00016438,2]
[352751069,1739291441442,-500.0,0.00016438,2]
[352751070,1739291441451,-500.0,0.00016438,2]
[352751071,1739291441460,-500.0,0.00016438,2]
[352751072,1739291441470,-500.0,0.00016438,2]
[352751073,1739291441482,-1637.32,0.00016438,2]
[352751074,1739291441491,-500.0,0.00016438,2]
[352751075,1739291441501,-1197.73,0.00016438,2]
[352751076,1739291441510,-1325.33,0.00016438,2]
[352751077,1739291441520,-500.0,0.00016438,2]
[352751078,1739291441529,-500.0,0.00016438,2]
[352751079,1739291441538,-521.42,0.00016438,2]
[352751080,1739291441547,-500.0,0.00016438,2]
[352751081,1739291441557,-616.32,0.00016438,2]
[352751082,1739291441566,-500.0,0.00016438,2]
[352751083,1739291441576,-500.0,0.00016438,2]
[352751084,1739291441585,-500.0,0.00016438,2]
[352751085,1739291441595,-151.0,0.00016438,2]
[352751086,1739291441604,-151.0,0.00016438,2]
[352751087,1739291441614,-166.953046,0.00016438,2]
[352751088,1739291441623,-151.0,0.00016438,2]
[352751089,1739291441633,-166.953046,0.00016438,2]
[352751090,1739291441643,-500.0,0.00016438,2]
[352751091,1739291441652,-848.03,0.00016438,2]
[352751092,1739291441661,-1253.93,0.00016438,2]
[352751093,1739291441671,-1516.7,0.00016438,2]
[352751094,1739291441681,-151.0,0.00016438,2]
[352751095,1739291441690,-500.0,0.00016438,2]
[352751096,1739291441699,-151.0,0.00016438,2]
[352751097,1739291441708,-151.0,0.00016438,2]
[352751098,1739291441718,-166.953046,0.00016438,2]
[352751099,1739291441727,-166.953046,0.00016438,2]
[352751100,1739291441739,-500.0,0.00016438,2]
[352751101,1739291441748,-494.96,0.00016438,2]
[352751102,1739291441757,-426.57755876,0.00016438,2]
[352751103,1739291441767,-500.0,0.00016439,2]
[352751104,1739291441776,-325.27956648,0.00016475,2]
[352751105,1739291441785,-500.0,0.00016483,2]
[352751106,1739291441795,-1500.0,0.000165,2]
[352751107,1739291441805,-2400.0,0.000165,6]
[352751108,1739291441814,-700.0,0.000165,6]
[352751109,1739291441823,-151.0,0.00016512,2]
[352751110,1739291441832,-151.0,0.00016512,2]
[352751111,1739291441842,-151.0,0.00016512,2]
[352751112,1739291441851,-1465.41,0.00016512,2]
[352751113,1739291441860,-500.0,0.00016527,2]
[352751114,1739291441869,-2000.0,0.00016527,2]
[352751115,1739291441879,-500.0,0.00016527,2]
[352751116,1739291441888,-500.0,0.00016527,2]
[352751117,1739291441897,-200.0,0.00016527,2]
[352751118,1739291441906,-500.0,0.00016571,2]
[352751119,1739291441916,-151.0,0.00016574,2]
[352751120,1739291441926,-765.735734,0.00016574,2]
[352751121,1739291441935,-765.735734,0.00016574,2]
[352751122,1739291441944,-500.0,0.00016574,2]
[352751123,1739291441954,-500.0,0.00016574,2]
[352751124,1739291441964,-166.953046,0.00016574,2]
[352751125,1739291441973,-166.953046,0.00016574,2]
[352751126,1739291441984,-603.92922097,0.00016575,3]
[352751127,1739291441994,-1983.0,0.00016575,2]
[352751128,1739291442003,-1235.890601,0.00016575,2]
[352751129,1739291442013,-1015.842648,0.00016575,2]
[352751130,1739291442022,-150.0,0.00016575,2]
[352751131,1739291442031,-201.57193,0.00016575,2]
[352751132,1739291442040,-151.0,0.00016575,2]
[352751133,1739291442049,-151.0,0.00016575,2]
[352751134,1739291442058,-151.0,0.00016575,2]
[352751135,1739291442068,-151.0,0.00016575,2]
[352751136,1739291442078,-151.0,0.00016575,2]
[352751137,1739291442087,-151.0,0.00016575,2]
[352751138,1739291442096,-390.431318,0.00016575,2]
[352751139,1739291442105,-390.431318,0.00016575,2]
[352751140,1739291442115,-390.431318,0.00016575,2]
[352751141,1739291442124,-390.431318,0.00016575,2]
[352751142,1739291442134,-500.0,0.00016575,2]
[352751143,1739291442143,-500.0,0.00016575,2]
[352751144,1739291442152,-500.0,0.00016575,7]
[352751145,1739291442162,-267.4,0.00016575,2]
[352751146,1739291442171,-500.0,0.00016575,2]
[352751147,1739291442181,-500.0,0.00016575,2]
[352751148,1739291442191,-298.581556,0.00016575,2]
[352751149,1739291442200,-298.581556,0.00016575,2]
[352751150,1739291442210,-500.0,0.00016575,2]
[352751151,1739291442219,-298.581556,0.00016575,2]
[352751152,1739291442230,-298.581556,0.00016575,2]
[352751153,1739291442239,-500.0,0.00016575,2]
[352751154,1739291442248,-500.0,0.00016575,2]
[352751155,1739291442258,-500.0,0.00016575,2]
[352751156,1739291442267,-500.0,0.00016575,2]
[352751157,1739291442276,-500.0,0.00016575,2]
[352751158,1739291442285,-500.0,0.00016575,2]
[352751159,1739291442295,-151.0,0.00016575,2]
[352751160,1739291442304,-165.850457,0.00016575,2]
[352751161,1739291442313,-500.0,0.00016575,2]
[352751162,1739291442322,-500.0,0.00016575,2]
[352751163,1739291442332,-500.0,0.00016575,2]
[352751164,1739291442341,-500.0,0.00016575,2]
[352751165,1739291442351,-500.0,0.00016575,2]
[352751166,1739291442360,-500.0,0.00016575,2]
[352751167,1739291442370,-500.0,0.00016575,2]
[352751168,1739291442380,-500.0,0.00016575,2]
[352751169,1739291442390,-500.0,0.00016575,2]
[352751170,1739291442400,-500.0,0.00016575,2]
[352751171,1739291442409,-500.0,0.00016575,2]
[352751172,1739291442418,-500.0,0.00016575,2]
[352751173,1739291442432,-151.0,0.00016575,2]
[352751174,1739291442441,-151.0,0.00016575,2]
[352751175,1739291442451,-151.0,0.00016575,2]
[352751176,1739291442460,-151.0,0.00016575,2]
[352751177,1739291442471,-577.79,0.00016575,2]
[352751178,1739291442482,-500.0,0.00016575,2]
[352751179,1739291442491,-500.0,0.00016575,2]
[352751180,1739291442500,-500.0,0.00016575,2]
[352751181,1739291442510,-190.513922,0.00016575,2]
[352751182,1739291442520,-190.513922,0.00016575,2]
[352751183,1739291442530,-500.0,0.00016575,2]
[352751184,1739291442540,-500.0,0.00016575,2]
[352751185,1739291442549,-500.0,0.00016575,2]
[352751186,1739291442559,-190.513922,0.00016575,2]
[352751187,1739291442568,-190.513922,0.00016575,2]
[352751188,1739291442577,-500.0,0.00016575,2]
[352751189,1739291442587,-500.0,0.00016575,2]
[352751190,1739291442596,-500.0,0.00016575,2]
[352751191,1739291442606,-500.0,0.00016575,2]
[352751192,1739291442615,-500.0,0.00016575,2]
[352751193,1739291442624,-500.0,0.00016575,2]
[352751194,1739291442633,-500.0,0.00016575,2]
[352751195,1739291442642,-500.0,0.00016575,2]
[352751196,1739291442652,-500.0,0.00016575,2]
[352751197,1739291442661,-500.0,0.00016575,2]
[352751198,1739291442671,-503.77587726,0.00016575,2]
[352751199,1739291442680,-500.0,0.00016575,2]
[352751200,1739291442689,-500.0,0.00016575,2]
[352751201,1739291442698,-338.631567,0.00016575,2]
[352751202,1739291442707,-338.631567,0.00016575,2]
[352751203,1739291442717,-338.631567,0.00016575,2]
[352751204,1739291442727,-500.0,0.00016575,2]
[352751206,1739291442737,-500.0,0.00016575,2]
[352751207,1739291442747,-500.0,0.00016575,2]
[352751209,1739291442755,-338.631567,0.00016575,2]
[352751210,1739291442764,-500.0,0.00016575,2]
[352751211,1739291442773,-338.631567,0.00016575,2]
[352751212,1739291442782,-642.91,0.00016575,2]
[352751213,1739291442791,-338.631567,0.00016575,2]
[352751214,1739291442800,-500.0,0.00016575,2]
[352751215,1739291442810,-500.0,0.00016575,2]
[352751216,1739291442819,-500.0,0.00016575,2]
[352751217,1739291442828,-500.0,0.00016575,2]
[352751218,1739291442837,-500.0,0.00016575,2]
[352751219,1739291442847,-500.0,0.00016575,2]
[352751221,1739291442856,-505.92954318,0.00016575,2]
[352751223,1739291442865,-500.0,0.00016575,2]
[352751226,1739291442875,-500.0,0.00016575,2]
[352751228,1739291442884,-151.0,0.00016575,2]
[352751230,1739291442894,-151.0,0.00016575,2]
[352751232,1739291442903,-151.0,0.00016575,2]
[352751234,1739291442912,-456.49652863,0.00016575,2]
[352751235,1739291442921,-500.0,0.00016575,2]
[352751237,1739291442930,-215.04,0.00016575,2]
[352751239,1739291442939,-215.04,0.00016575,2]
[352751241,1739291442949,-500.0,0.00016575,2]
[352751243,1739291442958,-215.04,0.00016575,2]
[352751244,1739291442967,-500.0,0.00016575,2]
[352751245,1739291442977,-500.0,0.00016575,2]
[352751246,1739291442989,-151.0,0.00016575,2]
[352751247,1739291442999,-151.0,0.00016575,2]
[352751249,1739291443009,-218.267601,0.00016575,2]
[352751251,1739291443018,-215.04,0.00016575,2]
[352751252,1739291443027,-500.0,0.00016575,2]
[352751253,1739291443036,-500.0,0.00016575,2]
[352751254,1739291443045,-215.04,0.00016575,2]
[352751255,1739291443055,-215.04,0.00016575,2]
[352751256,1739291443065,-500.0,0.00016575,2]
[352751257,1739291443074,-500.0,0.00016575,2]
[352751258,1739291443084,-500.0,0.00016575,2]
[352751259,1739291443093,-500.0,0.00016575,2]
[352751260,1739291443103,-500.0,0.00016575,2]
[352751261,1739291443112,-500.0,0.00016575,2]
[352751262,1739291443121,-500.0,0.00016575,2]
[352751263,1739291443130,-500.0,0.00016575,2]
[352751264,1739291443139,-500.0,0.00016575,2]
[352751265,1739291443148,-500.0,0.00016575,2]
[352751266,1739291443158,-246.14014515,0.00016575,2]
[352751267,1739291443167,-500.0,0.00016575,2]
[352751268,1739291443176,-500.0,0.00016575,2]
[352751269,1739291443185,-542.84,0.00016575,2]
[352751270,1739291443194,-500.0,0.00016575,2]
[352751271,1739291443203,-500.0,0.00016575,2]
[352751272,1739291443212,-500.0,0.00016575,2]
[352751273,1739291443222,-500.0,0.00016575,2]
[352751274,1739291443232,-500.0,0.00016575,2]
[352751275,1739291443242,-500.0,0.00016575,2]
[352751276,1739291443252,-500.0,0.00016575,2]
[352751277,1739291443267,-500.0,0.00016575,2]
[352751278,1739291443276,-500.0,0.00016575,2]
[352751280,1739291443285,-500.0,0.00016575,2]
[352751282,1739291443295,-500.0,0.00016575,2]
[352751284,1739291443305,-500.0,0.00016575,2]
[352751286,1739291443314,-500.0,0.00016575,2]
[352751287,1739291443323,-500.0,0.00016575,2]
[352751289,1739291443333,-500.0,0.00016575,2]
[352751290,1739291443342,-500.0,0.00016575,2]
[352751291,1739291443352,-563.47,0.00016575,2]
[352751292,1739291443361,-500.0,0.00016575,2]
[352751293,1739291443370,-500.0,0.00016575,2]
[352751294,1739291443380,-500.0,0.00016575,2]
[352751296,1739291443390,-500.0,0.00016575,2]
[352751297,1739291443399,-500.0,0.00016575,2]
[352751299,1739291443411,-151.0,0.00016575,2]
[352751301,1739291443420,-324.381586,0.00016575,2]
[352751302,1739291443430,-324.381586,0.00016575,2]
[352751303,1739291443442,-151.0,0.00016575,2]
[352751304,1739291443451,-324.381586,0.00016575,2]
[352751305,1739291443461,-151.0,0.00016575,2]
[352751306,1739291443471,-500.0,0.00016575,2]
[352751307,1739291443482,-324.381586,0.00016575,2]
[352751308,1739291443491,-500.0,0.00016575,2]
[352751309,1739291443501,-500.0,0.00016575,2]
[352751310,1739291443513,-324.381586,0.00016575,2]
[352751311,1739291443528,-324.381586,0.00016575,2]
[352751312,1739291443538,-500.0,0.00016575,2]
[352751313,1739291443548,-500.0,0.00016575,2]
[352751314,1739291443557,-500.0,0.00016575,2]
[352751315,1739291443567,-500.0,0.00016575,2]
[352751316,1739291443577,-500.0,0.00016575,2]
[352751317,1739291443586,-178.32671515,0.00016575,2]